Cogmind - Beta 13 @@@ ROGUE MODE // 2024.07.06 @ 00:45:10 Player: Electroneer Result: Destroyed by GK-DSE(R) with Subdweller Laser Performance ------------- Evolutions (0) 0 Regions Visited (3) 600 Robots Destroyed (15) 75 Value Destroyed (311) 311 Prototype IDs (2) 40 Alien Tech Used (0) 0 Bonus (90) 90 TOTAL SCORE: 1116 Bonus ------- Follower Combat Kills 90 Cogmind --------- Core Integrity 0/250 Matter 290/300 Energy 200/200 System Corruption 0% Temperature Cool (6) Movement Core (350) Ox6 Location -10/Subcaves Parts ------- > --- POWER (1) -------- Subdweller Power Source > --- PROPULSION (2) --- (None) > --- UTILITY (2) ------ Medium Storage Unit Experimental Sensor Array > --- WEAPON (2) ------- EM Pulse Gun Light Assault Rifle > --- INVENTORY (10) --- Ion Engine Light Ion Engine Improved Heat Sink Terrain Scan Processor Scrap Shield Recalibrator Peak State ------------ > --- POWER ------------ Subdweller Power Source > --- PROPULSION ------- (None) > --- UTILITY ---------- Medium Storage Unit Experimental Sensor Array > --- WEAPON ----------- EM Pulse Gun Light Assault Rifle > --- INVENTORY -------- Ion Engine Light Ion Engine Improved Heat Sink Terrain Scan Processor Scrap Shield Recalibrator [Rating: 15] Favorites ----------- Power Ion Engine Engine Ion Engine Propulsion Light Treads Treads Light Treads Utility Medium Storage Unit Device Recalibrator Storage Medium Storage Unit Weapon Medium Laser Energy Gun Medium Laser Ballistic Gun Light Assault Rifle Launcher Grenade Launcher Build | -11 -10 -10 -10 ------- Run | Yrd Mat Min Sub Slots Evolved . | . . . . Power . | . . . . Propulsion . | . . . . Utility . | . . . . Weapon . | . . . . Parts Attached 17 | 6 6 1 4 Power 3 | 1 1 . 1 Engine 3 | 1 1 . 1 Core . | . . . . Reactor . | . . . . Propulsion 4 | 2 2 . . Treads 4 | 2 2 . . Leg . | . . . . Wheel . | . . . . Hover . | . . . . Flight . | . . . . Utility 5 | 1 2 1 1 Device 3 | . 1 1 1 Storage 2 | 1 1 . . Processor . | . . . . Hackware . | . . . . Protection . | . . . . Artifact . | . . . . Weapon 5 | 2 1 . 2 Energy Gun 2 | 1 . . 1 Energy Cannon . | . . . . Ballistic Gun 2 | 1 . . 1 Ballistic Cannon . | . . . . Launcher 1 | . 1 . . Special Weapon . | . . . . Impact Weapon . | . . . . Slashing Weapon . | . . . . Piercing Weapon . | . . . . Special Melee Weapon . | . . . . Unidentified Prototypes 2 | . . 1 1 Parts Lost 5 | . . 1 4 Power . | . . . . Propulsion 2 | . . . 2 Utility 1 | . . . 1 Weapon 2 | . . 1 1 Highest Loss Streak 2 | . . 1 2 To Critical Strikes . | . . . . Average Slot Usage (%) 90 | . 94 92 73 Engine 13 | . 13 14 14 Treads 25 | . 27 28 12 Device 11 | . 10 10 13 Storage 14 | . 14 14 14 Energy Gun 13 | . 14 14 11 Ballistic Gun 1 | . 1 . 6 Launcher 9 | . 12 10 . Naked Turns . | . . . . Heaviest Build 26 | 13 21 25 26 Greatest Support 40 | 40 40 40 40 Greatest Overweight (x) 8 | . 5 . 8 Average Overweight (x) . | . . . 2 Largest Inventory Capacity 10 | 8 10 10 10 Average Capacity 9 | 7 8 10 10 Most Carried 9 | 2 5 7 9 Average Carried 4 | . 3 4 8 Final Capacity 10 | 8 10 10 10 Final Carried 7 | 1 4 7 7 Class Distribution -------------------- 100% | Mutant Dominant Class ---------------- Mutant | -10/Materials Mutant | -10/Mines Mutant | -10/Subcaves Resources | -11 -10 -10 -10 ----------- Run | Yrd Mat Min Sub Matter Collected 468 | 236 133 49 50 Remotely . | . . . . Salvage Created 231 | . 205 26 . Parts 22 | . 15 7 . Haulers Intercepted . | . . . . Recyclers Shooed . | . . . . Parts Field Recycled . | . . . . Retrieved Matter . | . . . . Parts Self-Destructed 12 | . . . 12 Prevented . | . . . . Kills | -11 -10 -10 -10 ------- Run | Yrd Mat Min Sub Combat Hostiles Destroyed 7 | . 4 3 . AOE 7 | . 4 3 . Classes Destroyed 7 | . 6 1 . Worker 2 | . 1 1 . Builder 3 | . 3 . . Recycler 1 | . 1 . . Mechanic 1 | . 1 . . Watcher 1 | . 1 . . Swarmer 3 | . . 3 . Grunt 4 | . 4 . . Best Kill Streak 4 | . 4 4 . Combat Bots Only 3 | . 2 3 . Max Kills in Single Turn 4 | . 3 4 . Gunslinging . | . . . . Exploded 3 | . 1 3 . Melee . | . . . . Uniques/NPCs Destroyed . | . . . . Combat | -11 -10 -10 -10 -------- Run | Yrd Mat Min Sub Hostile Shots Fired 90 | . 30 4 56 Missed 37 | . 10 2 25 Damage Taken 1076 | . 321 108 647 Core 264 | . 97 27 140 Absorbed by Shields . | . . . . Core Remaining (%) 100 | 100 . . . Volleys Fired 20 | . 15 1 4 Largest 2 | . 2 2 2 Hottest 80 | . 80 80 60 Shots Fired 37 | . 27 2 8 Gun 24 | . 15 1 8 Cannon . | . . . . Launcher 13 | . 12 1 . Special . | . . . . Kinetic 4 | . . . 4 Thermal 16 | . 15 1 . Explosive 13 | . 12 1 . Electromagnetic 4 | . . . 4 Robot Hit Streak 6 | . 3 . 6 Robot Miss Streak 5 | . 5 . 1 Penetration Max . | . . . . Secondary Targets . | . . . . Shots Hit Robots 19 | . 12 . 7 Core Hits 25 | . 20 3 2 Critical Kills . | . . . . Critical Parts Destroyed . | . . . . Critical Strikes . | . . . . Melee Attacks . | . . . . Impact . | . . . . Slashing . | . . . . Piercing . | . . . . Sneak Attacks . | . . . . Combat Hostiles . | . . . . Follow-up Attacks . | . . . . Damage Inflicted 952 | . 693 190 69 Guns 119 | . 50 . 69 Cannons . | . . . . Explosions 830 | . 640 190 . Melee . | . . . . Ramming 3 | . 3 . . Kinetic 24 | . . . 24 Thermal 138 | . 50 88 . Explosive 720 | . 618 102 . Electromagnetic 67 | . 22 . 45 Impact . | . . . . Slashing . | . . . . Piercing . | . . . . Highest Corruption . | . . . . Average Corruption . | . . . . Corruption Purged . | . . . . Corruption Blocked . | . . . . Overload Shots . | . . . . Overflow Damage 54 | . 7 47 . Projectiles . | . . . . Explosions 54 | . 7 47 . Melee . | . . . . Knockbacks . | . . . . Impact . | . . . . Kinetic . | . . . . Secondary . | . . . . Self-Inflicted Damage 188 | . 97 91 . Shots 7 | . 4 3 . Rammed 3 | . 3 . . Targets Rammed 3 | . 3 . . Kicked . | . . . . Crushed . | . . . . Highest Temperature 102 | . 102 42 . Average Temperature 36 | . 37 27 . Received Heat Transfer 228 | . 126 . 102 Siege Activations . | . . . . Robots Corrupted . | . . . . Combat Hostiles . | . . . . Parts Fried . | . . . . Impact Corruptions . | . . . . Robots Melted . | . . . . Combat Hostiles . | . . . . Parts Melted . | . . . . Heat Transferred 248 | . 148 100 . Parts Sabotaged . | . . . . Parts Stolen . | . . . . Parts Stripped . | . . . . Power Chain Reactions . | . . . . Alert | -11 -10 -10 -10 ------- Run | Yrd Mat Min Sub Peak Influence 224 | . 224 192 . Initial 22 | . . 22 . Average 41 | . 74 38 . Maximum Alert Level 1 | . 1 . . Low Security (%) 98 | 100 92 100 . Level 1 1 | . 7 . . Level 2 . | . . . . Level 3 . | . . . . Level 4 . | . . . . Level 5 . | . . . . High Security . | . . . . Max Security . | . . . . Squads Dispatched 4 | . 4 . . Investigation 2 | . 2 . . Extermination . | . . . . Reinforcement 2 | . 2 . . Assault . | . . . . Garrison . | . . . . Intercept . | . . . . Searches Triggered . | . . . . Construction Impeded . | . . . . Haulers Reinforced . | . . . . Active Scanning Responses . | . . . . Cargo Convoy Interrupts . | . . . . Stealth | -11 -10 -10 -10 --------- Run | Yrd Mat Min Sub Distress Signals 2 | . 2 . . Communications Jammed . | . . . . Distress Signals . | . . . . Times Spotted 24 | . 13 3 8 Peak Tracking Total 6 | . 5 3 6 Tactical Retreats 1 | . . . 1 Traps | -11 -10 -10 -10 ------- Run | Yrd Mat Min Sub Traps Triggered 1 | . 1 . . Indirectly . | . . . . Trap Hack Attempts . | . . . . Triggered . | . . . . Disarmed . | . . . . Reprogrammed . | . . . . Reused . | . . . . Traps Extracted . | . . . . Installed . | . . . . Triggered . | . . . . Machines | -11 -10 -10 -10 ---------- Run | Yrd Mat Min Sub Machines Disabled 8 | . 2 6 . Max in Single Turn 6 | . 1 6 . Machines Repaired . | . . . . Machines Dismantled . | . . . . Machines Sabotaged . | . . . . Overloaded Fab Kills . | . . . . Hacking | -11 -10 -10 -10 --------- Run | Yrd Mat Min Sub Machines Accessed 4 | . 3 1 . Terminals 2 | . 2 . . Fabricators . | . . . . Repair Stations 1 | . 1 . . Recycling Units . | . . . . Scanalyzers . | . . . . Garrison Access . | . . . . Total Hacks 13 | . 12 1 . Successful 4 | . 3 1 . Failed 9 | . 9 . . Catastrophic 3 | . 3 . . Database Lockouts . | . . . . Manual 7 | . 4 3 . Terminals 8 | . 8 . . Fabricators . | . . . . Repair Stations 4 | . 4 . . Recycling Units . | . . . . Scanalyzers . | . . . . Garrison Access . | . . . . Terminal Hacks 4 | . 3 1 . Open Door 1 | . . 1 . Repair Station Index 1 | . 1 . . Dispatch Records 1 | . 1 . . Hauler Manifests 1 | . 1 . . Fabricator Hacks . | . . . . Repair Station Hacks . | . . . . Recycling Unit Hacks . | . . . . Scanalyzer . | . . . . Garrison Access Hacks . | . . . . Unauthorized Hacks . | . . . . Terminals . | . . . . Fabricators . | . . . . Repair Stations . | . . . . Recycling Units . | . . . . Scanalyzers . | . . . . Garrison Access . | . . . . Data Cores Recovered . | . . . . Used . | . . . . Hacking Detections 3 | . 3 . . Full Trace Events 3 | . 3 . . Feedback Events . | . . . . Feedback Blocked . | . . . . Robot Schematics Acquired . | . . . . Robots Built . | . . . . Authchips . | . . . . Time . | . . . . Total Robot Build Rating . | . . . . Part Schematics Acquired . | . . . . Parts Built . | . . . . Authchips . | . . . . Time . | . . . . Total Part Build Rating . | . . . . Parts Repaired . | . . . . Time . | . . . . Parts Recycled . | . . . . Recycled Matter . | . . . . Retrieved Matter . | . . . . Retrieved Components . | . . . . Parts Scanalyzed . | . . . . Part Schematics Acquired . | . . . . Parts Damaged . | . . . . Bothacking | -11 -10 -10 -10 ------------ Run | Yrd Mat Min Sub Used RIF Installer . | . . . . Robots Hacked . | . . . . Non-combat . | . . . . Combat . | . . . . Robot Hacks Applied . | . . . . Relay Couplers Released . | . . . . Fabnet Peak Effective % . | . . . . Robots Rewired . | . . . . Allies Hacked . | . . . . Hacks Repelled . | . . . . Allies | -11 -10 -10 -10 -------- Run | Yrd Mat Min Sub Total Allies . | . . . . Largest Group . | . . . . Highest-Rated Group . | . . . . Highest-Rated Ally . | . . . . Total Orders 2 | . . . 2 EXPLORE 2 | . . . 2 Ally Attacks 17 | . . . 17 Total Damage 76 | . . . 76 Kills 3 | . . . 3 Allies Corrupted . | . . . . Allies Melted . | . . . . Intel | -11 -10 -10 -10 ------- Run | Yrd Mat Min Sub Robot Analysis Total . | . . . . Derelict Logs Recovered 1 | . . 1 . Drone Launches 17 | . . . 17 Drone Recoveries 17 | . . . 17 Exploration | -11 -10 -10 -10 ------------- Run | Yrd Mat Min Sub Turns Passed 3654 | 170 497 2528 459 Spaces Moved 1217 | 111 231 703 172 Core 65 | 17 1 . 47 Treads 1152 | 94 230 703 125 Legs . | . . . . Wheels . | . . . . Hover . | . . . . Flight . | . . . . Fastest Speed 50 | 50 160 160 160 Average Speed 170 | 143 160 160 246 Slowest Speed 450 | 160 300 160 450 Overloaded Moves . | . . . . Propulsion Burnouts . | . . . . Robots Hopped . | . . . . Cave-ins Triggered . | . . . . Exploration Rate (%) 39 | 5 28 96 29 Regions Visited 3 Branch Regions 2 Pre-discovered Areas 2 | . . 2 . Known Exits Taken . | . . . . Unknown Exits Taken 3 | 1 1 1 . Scrap Searched 1 | . . 1 . Spaces Dug . | . . . . Terrain Destroyed 95 | . 58 37 . Melee . | . . . . Projectile . | . . . . AOE 95 | . 58 37 . Terrain Rammed . | . . . . Walls Destroyed . | . . . . Machines Disabled . | . . . . Actions | -11 -10 -10 -10 --------- Run | Yrd Mat Min Sub Total 2750 | 120 327 2104 199 Wait 1485 | 2 68 1397 18 Move 1214 | 110 230 702 172 Hop . | . . . . Pick Up 8 | 2 3 2 1 Fast Attach 10 | 5 4 1 . Attach 5 | 1 1 . 3 Detach 2 | . 1 1 . Swap 2 | . 1 . 1 Drop 1 | . 1 . . Fire 20 | . 15 1 4 Melee . | . . . . Ram . | . . . . Kick . | . . . . Crush 3 | . 3 . . Escape Stasis . | . . . . Rewire . | . . . . Trap . | . . . . Miscellaneous . | . . . . Route ------- -11/Scrapyard -10/Materials -10/Mines (discovered 3 exits: [*Mat] / [*Exi] / [*Sub]) -10/Subcaves History --------- Turn | Location | Event 7 | -11/Scrapyard | Discovered new exit (range 15) 171 | -11/Scrapyard | Entered Materials 335 | -10/Materials | Build established: Mutant 585 | -10/Materials | Discovered new exit (range 11) 668 | -10/Materials | Entered Mines 2118 | -10/Mines | Deemed a non-threat by the Exiles lab entrance 2120 | -10/Mines | Discovered new exit (range 5) 2260 | -10/Mines | Learned location of Mines (-9) 2574 | -10/Mines | Discovered new exit (range 14) 2614 | -10/Mines | Found the Drone Emporium 2624 | -10/Mines | Found Prototype Device 2624 | -10/Mines | Identified Splice Drone Bay 2801 | -10/Mines | Learned location of Storage (-7) 3127 | -10/Mines | Found a damaged Exp. Sensor Array with a note attached 3131 | -10/Mines | Found Prototype Device 3183 | -10/Mines | Discovered new exit (range 6) 3196 | -10/Mines | Entered Subcaves 3298 | -10/Subcaves | Ambushed by swarm of Subdwellers 3360 | -10/Subcaves | Lost 4 allies 3364 | -10/Subcaves | Core integrity fell below 50% 3373 | -10/Subcaves | Core integrity fell below 20% 3630 | -10/Subcaves | Identified Exp. Sensor Array 3655 | -10/Subcaves | Destroyed by GK-DSE(R) with Subdweller Laser Last Messages --------------- Splice Drone injecting 5Q-1QR(R)... Splice Drone retrieved by Splice Drone Bay. Splice Drone released from Splice Drone Bay. Splice Drone sneak attacks. Splice Drone injecting 5Q-1QR(R)... Splice Drone retrieved by Splice Drone Bay. Splice Drone released from Splice Drone Bay. Splice Drone sneak attacks. Splice Drone injecting 5Q-1QR(R)... 5Q-1QR(R) destroyed. Splice Drone released from Splice Drone Bay. Splice Drone retrieved by Splice Drone Bay. Splice Drone sneak attacks. Splice Drone injecting PR-AJR(R)... PR-AJR(R) destroyed. Acquired 34 matter. D6-TYR(O) collects matter. Splice Drone retrieved by Splice Drone Bay. Splice Drone Bay destroyed. Identified Exp. Sensor Array. Map ----- +----------------------------------------------------+ | #% ## ###??????????????????????????????????? | | ###?## ##?????????????????????????????????? | | ?????## #?????????????????????????????????? | | ###???##### #?????????????????????????????????? | | # #####?## #?###?????????????????????????????? | | ?# ### #? ##????????????????????????????? | | ??# ### #????????????????????????????? | | ???## ### #????????????????????????????? | | ????#### #### #?????????????????????????????? | | ???????# ### ##????????????????????????????? | | ???????# #????????????????????????????? | | ?##????### ##????????????????????????????? | | ?# ####??## #?????????????????????????????? | | ## #???# #?????????????????????????????? | | # ##?## ##????????????????????????????? | | ### #????????????????????????????? | | #????????????????????????????? | | # "#????????????????????????????? | | # ? & ##???????###??????????????????? | | ### "########## ###????????????????? | | ##?# " |## ## ###??????????????? | | ##?# ###### # ####???????????? | | #?###??## R #???????????? | | #??????# ###R ## ##???????????? | | # #??????# #?# ##### ###????????????? | | # #???##### ####?#@ ### #??????????????? | | # #?## #?## ##????# ! #??????????????? | | # ### #######?????# = #??????????????? | | #% ## ### ##??????# #??????????????? | | # ?# ### ##?????# ### ######?????????? | | ###?# % ### ###??# #### #?????????? | | ????## % ##?######## ##?????????? | | ?????# #??###### ####??????????? | | ?????# ### % #### ## ##?????????????? | | ?????# ##?# ### %& ###??????????????? | | ?????###??# ### %& #??#?????????????? | | ?????????## % ##### & ##? ##????????????? | | ?????????# #### ### #????????????? | | ????????## # #"""#????????? | | ???????## """""????????? | | ??????## " """""????????? | | ??????# ## ## " #"""#?????????? | | ?###### ### ###### " #?"##?????????? | | ?# ##?####????# ## " #?????????? | | ?## #??????????#### "" ### ##?????????? | | ??#### #?????????# " ###?? ##??????????? | | ?????#####??????# " #?????#???????????? | | ???????????????# " " #????????????????? | | ?????????????# """"" """ #????????????????? | | ???????????# """""""" #????????????????? | +----------------------------------------------------+ Best States ------------- Heat Dissipation 25 Energy Generation 15 Energy Capacity 250 Matter Stores 300 Matter Capacity 300 Sight Range 16 Robot Scan Range 20 Terrain Scan Density 10 Evasion (%) 50 Recoil Reduction 2 Item Schematics ----------------- None Robot Schematics ------------------ None Fabricated ------------ Nothing Alien Tech Used ----------------- None Achievements -------------- Let's See Who's Tougher Release The Drones! Shopping List Storm Trooper Uninvited Guest Challenges ------------ None Game ------ Seed ChipCoreArmor Manual? 0 Play Time 00:24:28 Cumulative 2.4 hours Start 2024.07.06 @ 00:19:34 End 2024.07.06 @ 00:45:10 Sessions 1 Manual Loads 0 Difficulty Rogue Special Mode None Game No. 3 Rogue 3 Adventurer 0 Explorer 0 Win Type - Total 0 Types 0/0/0/0/0/0/0/0/0 Lore% 9 Gallery% 3 Achievement% 4 Wizard Run 0 Options --------- Layout 0 ASCII 0 Keyboard 1 Movement Numpad Keybinds 0 Fullscreen 2 Font 24/Tamsyn Map View 183x50 Zoom Use 0% Tactical HUD 0 Map Filters NONE Filters NONE Steam 1 RUN: 3684f7f0-0213-45b1-9cec-7015860577a5